bitfinex-derivatives/quotes_BTCF0:USTF0_20210111
["timestamp","ask_amount","ask_price","bid_price","bid_amount"]
[1610389881926,0.10299,32763.0,32753.0,0.13632608]
[1610389882127,0.10299,32763.0,32747.0,0.10476]
[1610389882928,0.07827,32774.0,32747.0,0.10476]
[1610389883329,3.8883,32779.0,32747.0,0.10476]
[1610389884029,0.13632608,32748.0,32747.0,0.10476]
[1610389884630,0.13632608,32748.0,32735.0,0.08837]
[1610389885430,0.13632608,32748.0,32722.0,0.07406]
[1610389885629,0.13632608,32748.0,32719.0,4.6573]
[1610389886029,0.13632608,32748.0,32747.0,0.13632608]
[1610389886230,0.06856,32764.0,32747.0,0.13632608]
[1610389886834,0.06856,32764.0,32746.0,0.07397]
[1610389887937,0.13632608,32747.0,32746.0,0.04407]
[1610389888132,0.06856,32764.0,32746.0,0.04407]
[1610389889358,5.1059,32779.0,32746.0,0.04407]
[1610389889934,5.1059,32779.0,32774.0,0.13632608]
[1610389890133,0.3179,32804.0,32766.0,0.10791]
[1610389890334,4.0143,32792.0,32766.0,0.10791]
[1610389890533,4.09972,32792.0,32766.0,0.10791]
[1610389891938,0.13632608,32767.0,32766.0,0.10791]
[1610389893937,0.13632608,32767.0,32766.0,0.24423608]
[1610389894839,0.13632608,32767.0,32766.0,0.13632608]
[1610389895638,0.13632608,32767.0,32746.0,0.04407]
[1610389895840,0.13632608,32767.0,32733.0,0.09229]
[1610389896037,4.157,32770.0,32743.0,0.13632608]
[1610389897241,4.157,32770.0,32743.0,0.23819608]
[1610389898040,4.157,32770.0,32755.0,0.13632608]
[1610389898240,0.08926,32777.0,32755.0,0.13632608]
[1610389898841,0.10813,32784.0,32750.0,0.11398]
[1610389899042,3.9173,32787.0,32750.0,0.11398]
[1610389900042,3.9173,32787.0,32773.0,0.13632608]
[1610389900441,3.9173,32787.0,32764.0,0.10354]
[1610389901142,0.08542,32792.0,32764.0,0.10354]
[1610389901341,4.9078,32808.0,32764.0,0.10354]
[1610389902244,4.9078,32808.0,32764.0,0.64154]
[1610389902448,1.0,32829.0,32768.0,4.2032]
[1610389902644,5.69470383,32832.0,32768.0,4.2032]
[1610389902845,3.656,32832.0,32768.0,4.2032]
[1610389904046,0.13632608,32822.0,32806.0,0.13632608]
[1610389905248,4.2302,32838.0,32801.0,0.09075]
[1610389906051,4.2302,32838.0,32822.0,0.13632608]
[1610389906651,4.2302,32838.0,32801.0,0.09075]
[1610389907150,4.32112,32838.0,32801.0,0.09075]
[1610389908053,4.32112,32838.0,32824.0,0.13632608]
[1610389908254,0.09092,32838.0,32824.0,0.13632608]
[1610389909255,0.09092,32838.0,32805.0,4.2663]
[1610389910058,0.09092,32838.0,32831.0,0.13632608]
[1610389912057,0.09092,32838.0,32837.0,0.13632608]
[1610389912267,0.1556,32848.0,32837.0,0.13632608]
[1610389914063,0.1556,32848.0,32842.0,0.13632608]
[1610389914563,0.1556,32848.0,32822.0,4.2541]
[1610389914762,0.26746,32848.0,32822.0,4.2541]
[1610389914965,0.26746,32848.0,32820.0,0.1063]
[1610389915166,0.26746,32848.0,32811.0,0.08178]
[1610389915564,0.26746,32848.0,32806.0,3.7627]
[1610389916566,0.26746,32848.0,32770.0,2.15102517]
[1610389916766,0.26746,32848.0,32788.0,4.507]
[1610389916767,3.5909,32838.0,32788.0,4.507]
[1610389916966,3.69927,32838.0,32788.0,4.507]
[1610389918267,3.69927,32838.0,32818.0,0.13632608]
[1610389919469,0.10837,32838.0,32818.0,0.13632608]
[1610389920272,0.10837,32838.0,32837.0,0.13632608]
[1610389920475,0.10837,32838.0,32808.0,0.10655]
[1610389921977,0.26746,32848.0,32808.0,0.10655]
[1610389922177,0.10522,32838.0,32808.0,0.10655]
[1610389922578,3.9184,32831.0,32808.0,0.10655]
[1610389922778,4.03086,32831.0,32787.0,3.68]
[1610389924281,4.03086,32831.0,32810.0,0.13632608]
[1610389925281,4.03086,32831.0,32801.0,0.3098146]
[1610389926481,0.13632608,32802.0,32801.0,0.3098146]
[1610389926683,0.22510608,32802.0,32801.0,0.3098146]
[1610389927282,0.08878,32802.0,32801.0,0.3098146]
[1610389927883,0.07475,32824.0,32801.0,0.3098146]
[1610389930386,0.07475,32824.0,32813.0,0.13632608]
[1610389930788,0.07475,32824.0,32801.0,0.3098146]
[1610389932490,0.13632608,32802.0,32801.0,0.3098146]
[1610389934290,3.9354,32806.0,32801.0,0.2898146]
[1610389934491,0.07943,32809.0,32801.0,0.2898146]
[1610389934692,4.1371,32802.0,32801.0,0.2898146]
[1610389935490,4.27342608,32802.0,32801.0,0.2898146]
[1610389935892,4.1371,32802.0,32801.0,0.2898146]
[1610389937590,4.27342608,32802.0,32801.0,0.2898146]
[1610389939193,4.1371,32802.0,32801.0,0.2898146]
[1610389939793,4.27342608,32802.0,32801.0,0.2898146]
[1610389942295,0.13632608,32802.0,32801.0,0.2898146]
[1610389942695,0.07943,32809.0,32801.0,0.2898146]
[1610389942895,3.5244,32818.0,32801.0,0.2898146]
[1610389943900,0.07475,32824.0,32801.0,0.2898146]
[1610389944100,0.10522,32838.0,32801.0,0.2898146]
[1610389944301,0.10522,32838.0,32801.0,0.42614068]
[1610389944699,3.973,32842.0,32801.0,0.42614068]
[1610389944900,3.973,32842.0,32802.0,0.6055]
[1610389945100,1.01722987,32849.0,32801.0,0.50619068]
[1610389945302,0.294,32852.0,32804.0,4.4676]
[1610389946201,0.294,32852.0,32834.0,0.13632608]
[1610389946202,0.13632608,32838.0,32834.0,0.13632608]
[1610389946600,0.24576608,32838.0,32834.0,0.13632608]
[1610389948003,0.24576608,32838.0,32804.0,4.4676]
[1610389948203,0.24576608,32838.0,32825.0,0.13632608]
[1610389950206,0.24576608,32838.0,32837.0,0.13632608]
[1610389950407,0.24576608,32838.0,32817.0,0.10467]
[1610389952309,0.24576608,32838.0,32837.0,0.13632608]
[1610389952709,0.24576608,32838.0,32817.0,0.10467]
[1610389953510,0.24576608,32838.0,32804.0,4.4676]
[1610389954312,0.10944,32838.0,32836.0,0.13632608]
[1610389954511,0.4771,32856.0,32815.0,0.10825]
[1610389954712,0.4771,32856.0,32815.0,0.72735]
[1610389956513,0.4771,32856.0,32836.0,0.13632608]
[1610389957412,0.4771,32856.0,32815.0,0.72735]
[1610389957613,0.22926,32848.0,32815.0,0.72735]
[1610389958515,0.22926,32848.0,32826.0,0.13632608]
[1610389959417,0.22926,32848.0,32815.0,0.6191]
[1610389961118,0.13632608,32832.0,32822.0,0.13632608]
[1610389963121,0.13632608,32828.0,32827.0,0.13632608]
[1610389963321,0.13632608,32828.0,32815.0,0.6191]
[1610389963721,0.13632608,32828.0,32801.0,0.3698646]
[1610389963921,0.13632608,32828.0,32807.0,3.5426]
[1610389964124,0.13632608,32828.0,32801.0,0.3698646]
[1610389964922,4.2395,32825.0,32801.0,0.3698646]
[1610389965131,0.13632608,32807.0,32801.0,0.3698646]
[1610389966937,4.5836,32802.0,32801.0,0.2898146]
[1610389967534,6.61613,32818.0,32801.0,0.2898146]
[1610389967535,0.10685,32805.0,32801.0,0.2898146]
[1610389967732,0.13632608,32802.0,32801.0,0.2898146]
[1610389973537,0.07433,32818.0,32801.0,0.2898146]
[1610389973737,0.13632608,32826.0,32817.0,0.13632608]
[1610389975738,0.13632608,32826.0,32825.0,0.13632608]
[1610389976840,0.2752,32846.0,32809.0,0.0786]
[1610389978242,0.2752,32846.0,32804.0,3.5541]
[1610389978443,0.2752,32846.0,32832.0,0.13632608]
[1610389979843,0.2752,32846.0,32812.0,0.11071]
[1610389980044,3.4834,32840.0,32812.0,0.11071]
[1610389980243,3.5824,32840.0,32812.0,0.11071]
[1610389981646,0.099,32840.0,32812.0,0.11071]
[1610389981847,0.099,32840.0,32817.0,3.8478]
[1610389982449,0.4771,32856.0,32839.0,0.13632608]
[1610389983046,0.1556,32848.0,32839.0,0.13632608]
[1610389984450,0.1556,32848.0,32847.0,0.13632608]
[1610389986450,0.1556,32848.0,32847.0,0.64792608]
[1610389987750,0.1556,32848.0,32847.0,0.13632608]
[1610389988150,1.02199848,32883.0,32852.0,4.7642]
[1610389988352,1.02138604,32887.0,32847.0,0.13632608]
[1610389988552,0.13632608,32884.0,32879.0,0.13632608]
[1610389988752,0.21144608,32884.0,32881.0,0.4899]
[1610389988950,0.07512,32884.0,32881.0,0.4899]
[1610389990154,1.01990266,32907.0,32881.0,0.4899]
[1610389990553,1.01873275,32911.0,32881.0,0.4899]
[1610389990953,1.01881646,32909.0,32892.0,0.13632608]
[1610389991353,1.01777029,32910.0,32870.0,0.06852]
[1610389991554,1.01777029,32910.0,32877.0,5.0977]
[1610389991753,1.01767784,32914.0,32877.0,5.1675]
[1610389991956,1.01767784,32914.0,32877.0,0.0698]
[1610389992155,1.01766308,32917.0,32884.0,4.4496]
[1610389992554,1.01655237,32918.0,32884.0,4.4496]
[1610389992954,1.01653664,32919.0,32904.0,0.13632608]
[1610389993355,1.01647995,32920.0,32904.0,0.13632608]
[1610389993757,1.01522852,32925.0,32904.0,0.13632608]
[1610389994053,1.01520937,32926.0,32904.0,0.13632608]
[1610389994454,1.0142676,32928.0,32904.0,0.13632608]
[1610389994654,1.0142676,32928.0,32902.0,4.9597]
[1610389994857,0.11094,32928.0,32902.0,4.9597]
[1610389995057,0.11094,32928.0,32908.0,0.13632608]
[1610389996961,0.11094,32928.0,32902.0,4.9597]
[1610389999063,0.11094,32928.0,32926.0,0.13632608]
[1610389999866,0.4771,32930.0,32926.0,0.13632608]
[1610390000368,0.4771,32930.0,32908.0,0.27671568]
[1610390000369,0.00185151,32921.0,32908.0,0.27671568]
[1610390000564,0.4771,32930.0,32908.0,0.27671568]
[1610390000766,0.09803,32921.0,32908.0,0.27671568]
[1610390000965,0.09803,32921.0,32920.0,0.13632608]
[1610390001568,0.09803,32921.0,32920.0,3.86802608]
[1610390003765,0.09803,32921.0,32920.0,3.7317]
[1610390004867,0.4771,32948.0,32920.0,3.7317]
[1610390005466,0.4771,32948.0,32947.0,0.13632608]
[1610390006467,0.1556,32949.0,32947.0,0.13632608]
[1610390008272,1.00346855,32975.0,32966.0,5.0009]
[1610390008472,1.00188772,32982.0,32966.0,5.0009]
[1610390008673,1.00188772,32982.0,32947.0,0.13632608]
[1610390008871,0.11308,32982.0,32954.0,3.8825]
[1610390009473,0.11308,32982.0,32977.0,0.13632608]
[1610390010075,0.11308,32982.0,32967.0,3.6008]
[1610390010473,0.11308,32982.0,32967.0,3.5989512]
[1610390011276,0.11308,32982.0,32951.0,0.07063]
[1610390011478,0.13632608,32968.0,32951.0,4.86333]
[1610390011677,0.21813608,32968.0,32944.0,0.11003]
[1610390012078,0.08181,32968.0,32936.0,4.3446]
[1610390013486,0.13632608,32937.0,32864.0,0.2921]
[1610390013685,0.13632608,32937.0,32912.0,4.8623]
[1610390013887,0.13632608,32937.0,32905.0,0.08628]
[1610390014103,4.6952,32934.0,32905.0,0.08628]
[1610390014386,4.6952,32934.0,32894.0,4.4838]
[1610390014985,0.13632608,32937.0,32864.0,0.2921]
[1610390015186,0.13632608,32937.0,32906.0,3.6384]
[1610390015386,0.07423,32940.0,32931.0,0.13632608]
[1610390017387,0.07423,32940.0,32939.0,0.13632608]
[1610390018386,0.3179,32966.0,32939.0,0.13632608]
[1610390018591,0.3179,32966.0,32939.0,3.79702608]
[1610390018788,0.2984,32978.0,32939.0,3.6607]
[1610390019389,0.2946,32984.0,32969.0,0.13632608]
[1610390019992,0.2946,32984.0,32948.0,0.09646]
[1610390020193,0.10242,32984.0,32948.0,4.20476]
[1610390021396,0.10242,32984.0,32964.0,0.13632608]
[1610390021596,0.10242,32984.0,32948.0,4.20476]
[1610390021796,0.10242,32984.0,32948.0,0.09646]
[1610390021995,0.10242,32984.0,32952.0,4.7097]
[1610390023197,0.4861,32982.0,32952.0,4.7097]
[1610390023398,0.13632608,32953.0,32952.0,4.7097]
[1610390023598,0.13632608,32953.0,32934.0,0.07639]
[1610390023800,0.10333,32956.0,32932.0,5.0796]
[1610390025502,0.13632608,32933.0,32919.0,0.08414]
[1610390025702,0.24067608,32933.0,32908.0,3.99721568]
[1610390026306,0.24067608,32933.0,32908.0,0.27671568]
[1610390027506,0.13632608,32914.0,32908.0,0.27671568]
[1610390028406,0.09439,32915.0,32908.0,0.27671568]
[1610390028828,0.10435,32933.0,32911.0,4.1181]
[1610390029026,0.10435,32933.0,32927.0,3.6611]
[1610390029410,0.13632608,32959.0,32932.0,0.13632608]
[1610390030009,1.0,32971.0,32932.0,0.13632608]
[1610390030810,4.9209,32973.0,32932.0,0.13632608]
[1610390031010,4.9209,32973.0,32927.0,0.08237]
[1610390031210,5.00845,32973.0,32927.0,0.08237]
[1610390031413,5.00845,32973.0,32958.0,0.13632608]
[1610390031812,0.08755,32973.0,32958.0,0.13632608]
[1610390032812,0.10242,32984.0,32958.0,0.13632608]
[1610390033012,0.4442,32986.0,32955.0,0.08794]
[1610390033413,0.4442,32986.0,32985.0,0.13632608]
[1610390033615,0.2886,32986.0,32985.0,0.13632608]
[1610390034417,0.2886,32986.0,32985.0,0.13447822]
[1610390035216,0.2886,32986.0,32968.0,3.5887]
[1610390035416,0.13632608,32969.0,32962.0,0.07821]
[1610390035818,3.6031,32982.0,32962.0,0.07821]
[1610390037519,0.13632608,32979.0,32977.0,0.13632608]
[1610390038419,0.13632608,32979.0,32962.0,0.07821]
[1610390038821,0.13632608,32979.0,32959.0,4.347]
[1610390039022,0.39248,32986.0,32959.0,4.347]
[1610390040223,0.39248,32986.0,32985.0,0.13632608]
[1610390041425,0.39248,32986.0,32971.0,4.2854]
[1610390042030,0.2886,32986.0,32971.0,4.2854]
[1610390042228,0.13632608,32990.0,32985.0,0.13632608]
[1610390042429,0.13632608,32990.0,32977.0,0.09772]
[1610390043529,0.09952,32994.0,32977.0,0.09772]
[1610390044230,0.13632608,32984.0,32981.0,0.13632608]
[1610390045232,0.13632608,32984.0,32967.0,0.09035]
[1610390045631,0.13632608,32984.0,32955.0,0.08794]
[1610390045830,0.13632608,32984.0,32952.0,3.4625]
[1610390046230,0.09469,32987.0,32969.0,0.13632608]
[1610390048335,0.09469,32987.0,32968.0,0.09068]
[1610390048336,0.09952,32994.0,32986.0,0.13632608]
[1610390048535,0.3179,33003.0,32986.0,0.13632608]
[1610390050339,0.3179,33003.0,32995.0,0.13632608]
[1610390052541,0.3179,33003.0,32996.0,3.7656]
[1610390054042,0.3179,33003.0,32986.0,0.1018]
[1610390054443,0.3179,33003.0,32993.0,0.13632608]
[1610390056245,0.3179,33003.0,32993.0,3.93292608]
[1610390056446,0.3179,33003.0,33001.0,0.13632608]
[1610390057048,0.10439,33010.0,33001.0,0.13632608]
[1610390058352,0.10439,33010.0,33009.0,0.13632608]
[1610390058748,0.13632608,33013.0,33009.0,0.13632608]
[1610390058951,0.1556,33016.0,33009.0,0.13632608]
[1610390059148,0.1556,33016.0,33009.0,0.80442608]
[1610390060251,0.1556,33016.0,33007.0,0.08819]
[1610390060450,0.13632608,33008.0,33000.0,0.08473]
[1610390060656,3.9733,33001.0,32993.0,0.07855]
[1610390060849,3.9733,33001.0,32986.0,0.1018]
[1610390061049,3.9733,33001.0,32976.0,0.08358]
[1610390061250,3.9733,33001.0,32967.0,3.5463]
[1610390061751,0.07518,33001.0,32938.0,2.00164174]
[1610390061953,0.07518,33001.0,32979.0,4.1178]
[1610390062354,0.13632608,32998.0,32997.0,0.13632608]
[1610390062657,0.07518,33001.0,32979.0,4.1178]
[1610390063753,0.06853,33013.0,32979.0,4.1178]
[1610390063954,0.1556,33016.0,32979.0,4.1178]
[1610390064154,0.1556,33016.0,32984.0,0.03]
[1610390064354,0.1556,33016.0,33015.0,0.13632608]
[1610390064555,0.1556,33016.0,33004.0,0.08134]
[1610390064755,0.1556,33016.0,33005.0,4.7442]
[1610390065157,0.1556,33016.0,32993.0,0.53148051]
[1610390066064,0.1556,33016.0,32993.0,0.43253051]
[1610390066458,0.13632608,32994.0,32993.0,0.43253051]
[1610390066860,0.10944,32999.0,32993.0,0.43253051]
[1610390067465,0.10944,32999.0,32993.0,0.53057051]
[1610390067760,0.1556,33016.0,32993.0,0.53057051]
[1610390068357,0.1556,33016.0,33011.0,0.13632608]
[1610390069958,0.1556,33016.0,33006.0,5.018]
[1610390070362,0.13632608,33007.0,33006.0,5.018]
[1610390072062,0.13632608,33007.0,33000.0,0.11213]
[1610390072462,0.1556,33016.0,32996.0,0.13632608]
[1610390072463,0.13632608,33001.0,32996.0,0.13632608]
[1610390072662,0.13632608,33001.0,32993.0,5.32537051]
[1610390074465,0.10628,33013.0,32993.0,5.32537051]
[1610390074466,0.13632608,32994.0,32993.0,5.32537051]
[1610390075869,0.13632608,32994.0,32993.0,0.53057051]
[1610390076070,0.13632608,32994.0,32993.0,0.43253051]
[1610390077773,3.9427,33004.0,32993.0,0.43253051]
[1610390077774,0.0935,33004.0,32993.0,0.43253051]
[1610390077976,0.10493,32994.0,32993.0,0.43253051]
[1610390078373,0.24125608,32994.0,32993.0,0.43253051]
[1610390079175,0.10493,32994.0,32993.0,0.43253051]
[1610390079575,0.0935,33004.0,32993.0,0.43253051]
[1610390079775,0.10628,33013.0,32993.0,0.43253051]
[1610390080075,0.1556,33016.0,32993.0,0.43253051]
[1610390080477,0.1556,33016.0,32999.0,0.13632608]
[1610390081079,0.1556,33016.0,32993.0,0.43253051]
[1610390082483,0.13632608,32994.0,32993.0,0.43253051]
[1610390096099,0.08246,33001.0,32993.0,0.43253051]
[1610390096300,5.012,33009.0,32993.0,0.43253051]
[1610390096601,0.13632608,32994.0,32993.0,0.43253051]
[1610390118125,0.13632608,32994.0,32993.0,5.28393051]
[1610390118332,0.10729,32999.0,32994.0,0.02]
[1610390118727,0.08362,33006.0,32994.0,0.02]
[1610390118927,1.02838291,33014.0,32994.0,0.02]
[1610390119127,1.02833147,33020.0,32994.0,0.02]
[1610390119329,1.02833147,33020.0,33007.0,3.5483]
[1610390119529,1.11130963,33022.0,33007.0,3.5483]
[1610390119729,1.02802178,33029.0,33007.0,3.5483]
[1610390119929,1.02802178,33029.0,33001.0,0.09028]
[1610390120129,1.02773425,33041.0,33028.0,0.13632608]
[1610390120331,1.02773425,33041.0,33024.0,0.07368]
[1610390120529,0.09338,33043.0,33024.0,0.07368]
[1610390120729,0.09338,33043.0,33038.0,4.7001]
[1610390121130,1.02657735,33054.0,33038.0,4.7001]
[1610390121530,1.28317587,33059.0,33038.0,4.7001]
[1610390121531,1.02461011,33059.0,33038.0,4.7001]
[1610390121933,1.02451459,33069.0,33058.0,0.13632608]
[1610390122130,1.02451459,33069.0,33058.0,0.23336608]
[1610390122333,1.02435825,33074.0,33065.0,3.6865]
[1610390122731,1.02181508,33082.0,33065.0,3.6865]
[1610390123131,1.02171732,33085.0,33058.0,0.23336608]
[1610390123332,1.02171732,33085.0,33073.0,4.33]
[1610390123532,0.3179,33087.0,33058.0,0.23336608]
[1610390123731,0.3179,33087.0,33075.0,4.7182]
[1610390124332,0.3179,33087.0,33082.0,0.13632608]
[1610390124535,1.01924291,33090.0,33082.0,0.13632608]
[1610390124736,1.01691596,33096.0,33094.0,4.3292]
[1610390125136,1.59790705,33105.0,33094.0,4.3292]
[1610390125137,1.01676432,33105.0,33094.0,4.3292]
[1610390125435,1.01384116,33111.0,33094.0,4.3292]
[1610390125836,1.0136774,33118.0,33094.0,4.3292]
[1610390126236,1.0136774,33118.0,33105.0,0.13632608]
[1610390126636,1.01103775,33123.0,33113.0,3.7832]
[1610390127039,1.01094458,33125.0,33113.0,3.7832]
[1610390127436,0.3179,33138.0,33113.0,3.7832]
[1610390127437,0.96395271,33129.0,33113.0,3.78135886]
[1610390127638,1.00831993,33131.0,33113.0,3.78135886]
[1610390128037,1.26029758,33137.0,33113.0,3.78135886]
[1610390128438,1.25714871,33143.0,33123.0,0.13632608]
[1610390128839,1.25715016,33145.0,33127.0,4.758]
[1610390129240,1.25712511,33146.0,33127.0,4.758]
[1610390129441,1.25406097,33148.0,33127.0,4.758]
[1610390129842,0.4373,33149.0,33127.0,4.758]
[1610390130440,0.4348,33149.0,33127.0,4.758]
[1610390130840,0.13632608,33128.0,33127.0,4.758]
[1610390131040,0.22617608,33128.0,33127.0,4.758]
[1610390131240,0.22617608,33128.0,33100.0,0.09208]
[1610390131441,0.22617608,33128.0,33107.0,4.8698]
[1610390131842,0.22617608,33128.0,33100.0,0.09208]
[1610390132442,0.22617608,33128.0,33087.0,4.5615]
[1610390132842,0.13632608,33102.0,33101.0,0.13632608]
[1610390133042,0.08554,33112.0,33087.0,4.5615]
[1610390134948,0.13632608,33116.0,33111.0,0.13632608]
[1610390135347,0.08985,33128.0,33111.0,0.13632608]
[1610390136048,0.289,33148.0,33111.0,0.13632608]
[1610390136250,0.1556,33149.0,33111.0,0.13632608]
[1610390136450,0.1556,33149.0,33126.0,4.5436]
[1610390137651,0.1556,33149.0,33142.0,0.13632608]
[1610390138052,0.3179,33156.0,33142.0,0.13632608]
[1610390138253,0.3179,33156.0,33126.0,4.5436]
[1610390138452,0.39043,33156.0,33126.0,4.5436]
[1610390138656,0.39043,33156.0,33149.0,0.0199]
[1610390139655,4.08532608,33150.0,33149.0,0.0199]
[1610390139856,4.08532608,33150.0,33149.0,0.01806065]
[1610390140054,4.08532608,33150.0,33118.0,4.1158]
[1610390140455,0.13632608,33150.0,33098.0,0.06993]
[1610390140653,0.13632608,33150.0,33087.0,4.3236]
[1610390140654,4.9795,33142.0,33087.0,4.3236]
[1610390141253,0.2784,33141.0,33087.0,4.3236]
[1610390141556,0.2784,33141.0,33098.0,0.13632608]
[1610390141863,0.2784,33141.0,33087.0,4.3236]
[1610390143270,0.2784,33141.0,33040.0,0.2806]
[1610390143857,4.4496,33122.0,33040.0,0.2806]
[1610390144066,0.13632608,33071.0,33069.0,0.13632608]
[1610390144663,0.13632608,33071.0,33015.0,0.1824]
[1610390144870,0.08712,33077.0,33027.0,3.9091]
[1610390145062,0.08712,33077.0,33027.0,4.01582]
[1610390146062,0.2818,33115.0,33075.0,0.13632608]
[1610390146462,0.2818,33115.0,33071.0,3.7974]
[1610390146664,0.35756,33115.0,33071.0,3.7974]
[1610390147967,0.35756,33115.0,33092.0,0.13632608]
[1610390148566,0.35756,33115.0,33071.0,3.7974]
[1610390149967,0.07576,33115.0,33107.0,0.13632608]
[1610390151272,3.7151,33139.0,33107.0,0.13632608]
[1610390151475,0.2876,33141.0,33107.0,0.13632608]
[1610390151674,0.2876,33141.0,33109.0,4.7557]
[1610390152475,0.13632608,33138.0,33136.0,0.13632608]
[1610390152677,0.3,33152.0,33136.0,0.13632608]
[1610390152875,3.6856,33176.0,33131.0,4.8331]
[1610390153276,0.07253,33156.0,33131.0,4.8331]
[1610390153476,3.6856,33176.0,33131.0,4.8331]
[1610390154476,3.6856,33176.0,33141.0,0.13632608]
[1610390155277,3.6856,33176.0,33131.0,4.8331]
[1610390155478,3.78636,33176.0,33131.0,4.8331]
[1610390156578,3.78636,33176.0,33139.0,0.13632608]
[1610390157180,3.78636,33176.0,33131.0,4.8331]
[1610390158581,3.78636,33176.0,33141.0,0.13632608]
[1610390160482,3.78636,33176.0,33131.0,4.8331]
[1610390161085,3.78636,33176.0,33147.0,0.13632608]
[1610390161285,0.10076,33176.0,33147.0,0.13632608]
[1610390161484,0.2756,33186.0,33147.0,0.13632608]
[1610390163087,0.2756,33186.0,33142.0,4.3595]
[1610390163290,0.35365,33186.0,33142.0,4.3595]
[1610390165091,0.35365,33186.0,33143.0,0.13632608]
[1610390166792,0.35365,33186.0,33142.0,4.3595]
[1610390167395,0.35365,33186.0,33163.0,0.13632608]
[1610390167593,0.35365,33186.0,33142.0,4.3595]
[1610390169197,0.07805,33186.0,33142.0,4.3595]
[1610390169397,3.439,33192.0,33142.0,4.3595]
[1610390172400,3.439,33192.0,33160.0,0.13632608]
[1610390172601,3.439,33192.0,33142.0,4.3595]
[1610390172801,3.53947,33192.0,33142.0,4.3595]
[1610390174405,3.53947,33192.0,33166.0,0.13632608]
[1610390174606,0.10047,33192.0,33155.0,4.7729]
[1610390176507,0.13632608,33156.0,33155.0,4.7729]
[1610390176908,0.07587,33160.0,33155.0,4.7729]
[1610390177110,0.07587,33160.0,33135.0,0.08146]
[1610390177309,0.07587,33160.0,33124.0,4.707]
[1610390178511,0.07587,33160.0,33079.0,1.81084999]
[1610390178713,4.9859,33152.0,33101.0,4.123]
[1610390178910,0.13632608,33107.0,33102.0,0.13632608]
[1610390179109,0.13632608,33107.0,33075.0,1.97064788]
[1610390179110,0.13632608,33107.0,33071.0,1.82534053]
[1610390179310,0.13632608,33107.0,33082.0,4.6816]
[1610390179509,0.13632608,33107.0,33082.0,4.7513]
[1610390181012,0.13632608,33095.0,33091.0,0.13632608]
[1610390181413,0.09434,33114.0,33091.0,0.13632608]
[1610390181622,0.09434,33114.0,33091.0,0.23617608]
[1610390182915,0.09434,33114.0,33113.0,0.13632608]
[1610390183114,0.13632608,33122.0,33113.0,0.13632608]
[1610390183314,0.13632608,33122.0,33100.0,0.10565]
[1610390183514,0.23981608,33122.0,33100.0,0.10565]
[1610390183716,0.10349,33122.0,33100.0,0.10565]
[1610390184115,0.10349,33122.0,33095.0,4.4621]
[1610390185015,0.10349,33122.0,33121.0,0.13632608]
[1610390186017,0.07004,33130.0,33121.0,0.13632608]
[1610390186218,0.07587,33160.0,33121.0,0.13632608]
[1610390186417,0.2752,33158.0,33123.0,4.3178]
[1610390186619,0.07587,33160.0,33123.0,4.3178]
[1610390186818,0.2999,33172.0,33123.0,4.3178]
[1610390187020,0.2999,33172.0,33160.0,0.13632608]
[1610390187820,0.2999,33172.0,33143.0,3.3811]
[1610390188019,0.09431,33172.0,33143.0,3.3811]
[1610390189320,0.09431,33172.0,33165.0,0.13632608]
[1610390190922,0.09431,33172.0,33158.0,3.6925]
[1610390191324,0.09431,33172.0,33171.0,0.13632608]
[1610390192121,0.09431,33172.0,33158.0,3.6925]
[1610390193122,0.2903,33192.0,33158.0,3.6925]
[1610390193825,0.2903,33192.0,33179.0,0.13632608]
[1610390194624,0.2903,33192.0,33158.0,3.6925]
[1610390194823,0.36497,33192.0,33158.0,3.6925]
[1610390195825,0.13632608,33159.0,33158.0,3.6925]
[1610390196024,0.13632608,33159.0,33149.0,0.13632608]
[1610390196224,0.13632608,33159.0,33130.0,4.9365]
[1610390197123,0.06879,33163.0,33130.0,4.9365]
[1610390197925,0.06879,33163.0,33140.0,0.13632608]
[1610390199927,0.13632608,33141.0,33140.0,0.13632608]
[1610390200128,0.07469,33145.0,33140.0,0.13632608]
[1610390201131,0.06879,33163.0,33140.0,0.13632608]
[1610390201330,0.2737,33173.0,33140.0,0.13632608]
[1610390201929,0.2737,33173.0,33164.0,0.13632608]
[1610390202533,1.32420696,33195.0,33164.0,0.13632608]
[1610390202733,1.32420696,33195.0,33150.0,4.3443]
[1610390202935,0.281,33194.0,33150.0,4.3443]
[1610390203334,0.3179,33195.0,33150.0,4.3443]
[1610390204036,0.3179,33195.0,33186.0,0.13632608]
[1610390204637,0.07467,33192.0,33186.0,0.13632608]
[1610390205037,0.3179,33195.0,33186.0,0.13632608]
[1610390205438,0.3179,33195.0,33172.0,4.3812]
[1610390205741,0.41118,33195.0,33172.0,4.3812]
[1610390205943,0.41118,33195.0,33179.0,0.13632608]
[1610390206643,0.41118,33195.0,33172.0,4.3812]
[1610390207344,0.41118,33195.0,33152.0,0.09406]
[1610390207947,0.41118,33195.0,33145.0,4.4533]
[1610390209450,1.01230246,33193.0,33145.0,4.4533]
[1610390209849,1.01227645,33194.0,33145.0,4.4533]
[1610390210149,0.13632608,33152.0,33151.0,0.13632608]
[1610390211453,0.07362,33156.0,33151.0,0.13632608]
[1610390212254,0.07362,33156.0,33155.0,0.13632608]
[1610390213654,0.07362,33156.0,33146.0,4.0006]
[1610390213854,0.08039,33163.0,33146.0,4.0006]
[1610390214054,0.08039,33163.0,33146.0,4.08648]
[1610390214258,0.08039,33163.0,33162.0,0.13632608]
[1610390214855,0.13632608,33184.0,33162.0,0.13632608]
[1610390215257,0.2918,33193.0,33162.0,0.13632608]
[1610390216157,0.2918,33193.0,33192.0,0.13632608]
[1610390216761,0.09328,33195.0,33192.0,0.13632608]
[1610390217161,0.5497,33224.0,33192.0,0.13632608]
[1610390217559,0.5497,33224.0,33193.0,5.0322]
[1610390218160,0.13632608,33222.0,33206.0,0.13632608]
[1610390218562,0.13632608,33222.0,33167.0,0.11136]
[1610390218761,0.22196608,33222.0,33186.0,4.0449]
[1610390219260,0.08564,33222.0,33186.0,4.0449]
[1610390220262,0.08564,33222.0,33219.0,0.13632608]